[Event "GER-chW Blitz 2019"]
[Site "Magdeburg"]
[Date "2019.05.25"]
[Round "13.10"]
[White "Zimmer, Elke"]
[Black "Daemering, Katrin"]
[Result "0-1"]
[ECO "B24"]
[WhiteElo "1926"]
[BlackElo "2003"]
[Annotator "NA"]
[PlyCount "80"]
[EventDate "2019.05.25"]
[EventType "tourn"]
[EventCountry "GER"]
[SourceTitle "playchess.com"]
[Source "ChessBase"]
[SourceQuality "1"]
[TimeControl "180+2"]

1. e4 {[%emt 0:00:00]} c5 {[%emt 0:00:00]} 2. Nc3 {[%emt 0:00:00]} Nc6 {[%emt 0:00:01]} 3. g3 {[%emt 0:00:00]} g6 {[%emt 0:00:02]} 4. Bg2 {[%emt 0:00:01]} Bg7 {[%emt 0:00:01]} 5. d3 {[%emt 0:00:01]} e6 {[%emt 0:00:01]} 6. Be3 {[%emt 0:00:03]} Nd4 {[%emt 0:00:02]} 7. Qd2 {[%emt 0:00:10]} d6 {[%emt 0:00:07]} 8. Nd1 {[%emt 0:00:05]} a6 {[%emt 0:00:11]} 9. c3 {[%emt 0:00:01]} Nc6 {[%emt 0:00:01]} 10. Nf3 {[%emt 0:00:05]} Bd7 {[%emt 0:00:09]} 11. O-O {[%emt 0:00:04]} Nf6 {[%emt 0:00:13]} 12. Bh6 {[%emt 0:00:03]} O-O {[%emt 0:00:06]} 13. Bxg7 {[%emt 0:00:02]} Kxg7 {[%emt 0:00:01]} 14. Ne3 {[%emt 0:00:04]} b5 {[%emt 0:00:08]} 15. h3 {[%emt 0:00:10]} Rc8 {[%emt 0:00:18]} 16. Ng4 {[%emt 0:00:03]} Nxg4 17. hxg4 {[%emt 0:00:01]} h6 {[%emt 0:00:14]} 18. Rae1 {[%emt 0:00:07]} Qc7 {[%emt 0:00:21]} 19. Qe3 {[%emt 0:00:06]} Ne7 {[%emt 0:00:05]} 20. d4 {[%emt 0:00:07]} cxd4 {[%emt 0:00:12]} 21. cxd4 {[%emt 0:00:01]} Qb6 {[%emt 0:00:08]} 22. Re2 {[%emt 0:00:08]} Rc4 {[%emt 0:00:11]} 23. Rd1 {[%emt 0:00:05]} Rfc8 {[%emt 0:00:02]} 24. Red2 {[%emt 0:00:05]} Rc2 {[%emt 0:00:04]} 25. e5 {[%emt 0:00:07]} dxe5 {[%emt 0:00:12]} 26. Qxe5+ {[%emt 0:00:03]} f6 {[%emt 0:00:06]} 27. Qe2 {[%emt 0:00:08]} Rxd2 {[%emt 0:00:08]} 28. Qxd2 {[%emt 0:00:01]} Nd5 {[%emt 0:00:03]} 29. Nh4 {[%emt 0:00:05]} Qd6 {[%emt 0:00:13]} 30. Qd3 {[%emt 0:00:11]} Be8 {[%emt 0:00:02]} 31. Be4 {[%emt 0:00:09]} Nb4 {[%emt 0:00:02]} 32. Qb1 {[%emt 0:00:05]} f5 {[%emt 0:00:05]} 33. gxf5 {[%emt 0:00:02]} exf5 {[%emt 0:00:01]} 34. Bxf5 {[%emt 0:00:06]} Rc4 {[%emt 0:00:10]} 35. Bxg6 {[%emt 0:00:18]} Bxg6 {[%emt 0:00:02]} 36. Nxg6 {[%emt 0:00:10]} Qxg6 {[%emt 0:00:02]} 37. Qxg6+ {[%emt 0:00:04]} Kxg6 {[%emt 0:00:01]} 38. a3 {[%emt 0:00:01]} Nd5 {[%emt 0:00:01]} 39. Kg2 {[%emt 0:00:06]} Rc2 {[%emt 0:00:02]} 40. b4 {[%emt 0:00:03]} Ne3+ {[%emt 0:00:01]} 0-1

[Event "GER-chW Blitz 2019"]
[Site "Magdeburg"]
[Date "2019.05.25"]
[Round "13.11"]
[White "Kopylov, Luba"]
[Black "Kreismann, Franziska"]
[Result "1-0"]
[ECO "E81"]
[WhiteElo "2078"]
[BlackElo "1589"]
[Annotator "NA"]
[PlyCount "61"]
[EventDate "2019.05.25"]
[EventType "tourn"]
[EventCountry "GER"]
[SourceTitle "playchess.com"]
[Source "ChessBase"]
[SourceQuality "1"]
[TimeControl "180+2"]

1. d4 {[%emt 0:00:00]} g6 {[%emt 0:00:00]} 2. c4 {[%emt 0:00:02]} Bg7 {[%emt 0:00:00]} 3. e4 {[%emt 0:00:03]} d6 {[%emt 0:00:00]} 4. Nc3 {[%emt 0:00:03]} Nf6 {[%emt 0:00:01]} 5. f3 {[%emt 0:00:01]} O-O {[%emt 0:00:02]} 6. Be3 {[%emt 0:00:01]} Re8 {[%emt 0:00:01]} 7. Qd2 {[%emt 0:00:02]} e5 {[%emt 0:00:01]} 8. Nge2 {[%emt 0:00:03]} exd4 {[%emt 0:00:00]} 9. Nxd4 {[%emt 0:00:02]} Bd7 {[%emt 0:00:04]} 10. g4 {[%emt 0:00:06]} Nc6 {[%emt 0:00:09]} 11. h4 {[%emt 0:00:07]} Nxd4 {[%emt 0:00:04]} 12. Bxd4 {[%emt 0:00:01]} c5 {[%emt 0:00:01]} 13. Be3 {[%emt 0:00:07]} Bc6 {[%emt 0:00:03]} 14. h5 {[%emt 0:00:09]} Qc7 {[%emt 0:00:23]} 15. O-O-O {[%emt 0:00:10]} Rad8 {[%emt 0:00:05]} 16. Bh6 {[%emt 0:00:10]} Nd7 {[%emt 0:00:17]} 17. Bxg7 {[%emt 0:00:07]} Kxg7 {[%emt 0:00:01]} 18. hxg6 {[%emt 0:00:02]} fxg6 {[%emt 0:00:03]} 19. Qh6+ {[%emt 0:00:05]} Kf6 {[%emt 0:00:08]} 20. g5+ {[%emt 0:00:09]} Ke5 {[%emt 0:00:20]} 21. Ne2 {[%emt 0:00:33]} Nf8 {[%emt 0:00:08]} 22. Qh2+ {[%emt 0:00:08]} Ke6 {[%emt 0:00:04]} 23. Nf4+ {[%emt 0:00:13]} Ke7 {[%emt 0:00:02]} 24. Qh6 {[%emt 0:00:12]} Rd7 {[%emt 0:00:16]} 25. Bh3 {[%emt 0:00:06]} Kd8 {[%emt 0:00:07]} 26. Bxd7 {[%emt 0:00:10]} Qxd7 {[%emt 0:00:02]} 27. Nd5 {[%emt 0:00:14]} Qf7 {[%emt 0:00:12]} 28. Qh2 {[%emt 0:00:07]} Nd7 {[%emt 0:00:13]} 29. Qxd6 {[%emt 0:00:04]} Bxd5 {[%emt 0:00:04]} 30. Rxd5 {[%emt 0:00:06]} Re7 {[%emt 0:00:01]} 31. Qb8# {[%emt 0:00:05]} 1-0

[Event "GER-chW Blitz 2019"]
[Site "Magdeburg"]
[Date "2019.05.25"]
[Round "13.12"]
[White "Gheng, Simona"]
[Black "Kunze, Kerstin"]
[Result "1-0"]
[ECO "C77"]
[WhiteElo "1991"]
[BlackElo "2066"]
[Annotator "NA"]
[PlyCount "107"]
[EventDate "2019.05.25"]
[EventType "tourn"]
[EventCountry "GER"]
[SourceTitle "playchess.com"]
[Source "ChessBase"]
[SourceQuality "1"]
[TimeControl "180+2"]

1. e4 {[%emt 0:00:00]} e5 {[%emt 0:00:00]} 2. Nf3 {[%emt 0:00:02]} Nc6 {[%emt 0:00:01]} 3. Bb5 {[%emt 0:00:01]} a6 {[%emt 0:00:01]} 4. Ba4 {[%emt 0:00:00]} Nf6 {[%emt 0:00:04]} 5. d3 {[%emt 0:00:00]} b5 6. Bb3 Be7 {[%emt 0:00:04]} 7. O-O {[%emt 0:00:02]} O-O {[%emt 0:00:02]} 8. c3 {[%emt 0:00:01]} d6 {[%emt 0:00:09]} 9. Nbd2 {[%emt 0:00:03]} Na5 {[%emt 0:00:15]} 10. Bc2 c5 {[%emt 0:00:00]} 11. Re1 {[%emt 0:00:02]} g6 {[%emt 0:00:16]} 12. Nf1 {[%emt 0:00:01]} Nh5 {[%emt 0:00:02]} 13. Bh6 {[%emt 0:00:17]} Re8 {[%emt 0:00:05]} 14. Qd2 {[%emt 0:00:01]} Bg4 {[%emt 0:00:17]} 15. Qe3 {[%emt 0:00:20]} Bxf3 {[%emt 0:00:10]} 16. Qxf3 {[%emt 0:00:01]} Bg5 {[%emt 0:00:01]} 17. Bxg5 {[%emt 0:00:05]} Qxg5 {[%emt 0:00:01]} 18. g3 {[%emt 0:00:30]} Nf6 {[%emt 0:00:25]} 19. h4 {[%emt 0:00:08]} Qg4 {[%emt 0:00:17]} 20. Bd1 {[%emt 0:00:21]} Qxf3 {[%emt 0:00:03]} 21. Bxf3 {[%emt 0:00:01]} Rab8 {[%emt 0:00:09]} 22. Rac1 {[%emt 0:00:11]} b4 {[%emt 0:00:03]} 23. cxb4 {[%emt 0:00:13]} Rxb4 {[%emt 0:00:01]} 24. b3 {[%emt 0:00:00]} Nc6 {[%emt 0:00:04]} 25. Ne3 {[%emt 0:00:08]} Nd4 {[%emt 0:00:01]} 26. Kg2 {[%emt 0:00:09]} h5 {[%emt 0:00:17]} 27. Nc2 {[%emt 0:00:02]} Nxc2 {[%emt 0:00:05]} 28. Rxc2 {[%emt 0:00:01]} Rd4 {[%emt 0:00:01]} 29. Be2 {[%emt 0:00:04]} a5 {[%emt 0:00:08]} 30. f4 {[%emt 0:00:17]} Ra8 {[%emt 0:00:07]} 31. Rb1 {[%emt 0:00:14]} exf4 {[%emt 0:00:03]} 32. gxf4 {[%emt 0:00:02]} Nd7 {[%emt 0:00:07]} 33. Rc4 {[%emt 0:00:06]} Rxc4 {[%emt 0:00:03]} 34. bxc4 {[%emt 0:00:07]} Rb8 {[%emt 0:00:01]} 35. Rb5 {[%emt 0:00:06]} Rxb5 {[%emt 0:00:09]} 36. cxb5 {[%emt 0:00:01]} Kg7 {[%emt 0:00:05]} 37. Kf3 {[%emt 0:00:11]} Kf6 {[%emt 0:00:01]} 38. Ke3 {[%emt 0:00:01]} Ke6 {[%emt 0:00:07]} 39. f5+ {[%emt 0:00:05]} gxf5 {[%emt 0:00:03]} 40. Bxh5 {[%emt 0:00:01]} fxe4 {[%emt 0:00:02]} 41. dxe4 {[%emt 0:00:03]} f5 {[%emt 0:00:03]} 42. exf5+ {[%emt 0:00:04]} Kxf5 {[%emt 0:00:01]} 43. Be8 {[%emt 0:00:03]} Nb6 {[%emt 0:00:01]} 44. h5 {[%emt 0:00:02]} Kg5 {[%emt 0:00:04]} 45. Bf7 {[%emt 0:00:14]} d5 {[%emt 0:00:02]} 46. Kd3 {[%emt 0:00:05]} Kf6 {[%emt 0:00:05]} 47. Bg8 Nd7 48. Bxd5 Kg5 49. Bc6 Ne5+ 50. Ke4 Nf7 51. b6 Nd6+ 52. Kd5 Nc8 53. b7 Ne7+ 54. Kd6 1-0

[Event "GER-chW Blitz 2019"]
[Site "Magdeburg"]
[Date "2019.05.25"]
[Round "14.1"]
[White "Roesler, Hannah Clara Hed"]
[Black "Kunze, Kerstin"]
[Result "1-0"]
[ECO "C55"]
[WhiteElo "1619"]
[BlackElo "2066"]
[Annotator "NA"]
[PlyCount "122"]
[EventDate "2019.05.25"]
[EventType "tourn"]
[EventCountry "GER"]
[SourceTitle "playchess.com"]
[Source "ChessBase"]
[SourceQuality "1"]
[TimeControl "180+2"]

1. e4 {[%emt 0:00:00]} e5 {[%emt 0:00:00]} 2. Nf3 {[%emt 0:00:01]} Nc6 {[%emt 0:00:01]} 3. Bc4 {[%emt 0:00:00]} Nf6 {[%emt 0:00:02]} 4. d4 {[%emt 0:00:01]} Nxe4 {[%emt 0:00:37]} 5. dxe5 {[%emt 0:00:12]} Bc5 {[%emt 0:00:35]} 6. Bxf7+ {[%emt 0:00:24]} Kxf7 {[%emt 0:00:06]} 7. Qd5+ {[%emt 0:00:01]} Ke8 {[%emt 0:00:15]} 8. Qxe4 {[%emt 0:00:04]} Qe7 {[%emt 0:00:03]} 9. Bg5 {[%emt 0:00:22]} Qf7 {[%emt 0:00:03]} 10. O-O {[%emt 0:00:36]} h6 {[%emt 0:00:08]} 11. Bh4 {[%emt 0:00:14]} Rf8 {[%emt 0:00:08]} 12. Nc3 {[%emt 0:00:13]} Qf5 {[%emt 0:00:13]} 13. Qd5 {[%emt 0:00:21]} Bb6 {[%emt 0:00:02]} 14. Rae1 {[%emt 0:00:14]} Qe6 {[%emt 0:00:01]} 15. Qxe6+ {[%emt 0:00:11]} dxe6 {[%emt 0:00:01]} 16. Rd1 {[%emt 0:00:06]} g5 {[%emt 0:00:11]} 17. Bg3 {[%emt 0:00:02]} Ke7 {[%emt 0:00:01]} 18. h4 {[%emt 0:00:04]} g4 {[%emt 0:00:03]} 19. Nd2 {[%emt 0:00:07]} Nd4 {[%emt 0:00:10]} 20. Nc4 {[%emt 0:00:06]} Nxc2 {[%emt 0:00:08]} 21. Nxb6 {[%emt 0:00:04]} axb6 {[%emt 0:00:01]} 22. Rd2 {[%emt 0:00:04]} Nb4 {[%emt 0:00:03]} 23. Rfd1 {[%emt 0:00:04]} Nxa2 {[%emt 0:00:08]} 24. Ra1 {[%emt 0:00:02]} Nxc3 {[%emt 0:00:04]} 25. Rxa8 {[%emt 0:00:01]} Ne4 {[%emt 0:00:02]} 26. Re2 {[%emt 0:00:02]} Nc5 {[%emt 0:00:01]} 27. Ra1 {[%emt 0:00:03]} Rd8 {[%emt 0:00:03]} 28. Bf4 {[%emt 0:00:02]} h5 {[%emt 0:00:01]} 29. Bg5+ {[%emt 0:00:01]} Ke8 {[%emt 0:00:02]} 30. Bxd8 {[%emt 0:00:02]} Kxd8 {[%emt 0:00:00]} 31. Rd1+ {[%emt 0:00:03]} Ke7 {[%emt 0:00:01]} 32. Red2 {[%emt 0:00:03]} b5 {[%emt 0:00:02]} 33. Rd8 {[%emt 0:00:03]} Bd7 {[%emt 0:00:00]} 34. Rh8 {[%emt 0:00:04]} Be8 {[%emt 0:00:02]} 35. Rh7+ {[%emt 0:00:02]} Bf7 {[%emt 0:00:00]} 36. Rc1 {[%emt 0:00:04]} b6 37. b4 {[%emt 0:00:01]} Na6 {[%emt 0:00:04]} 38. Rc6 {[%emt 0:00:03]} Kd7 {[%emt 0:00:04]} 39. Rc1 {[%emt 0:00:03]} Ke7 {[%emt 0:00:01]} 40. Rd1 {[%emt 0:00:01]} Nxb4 {[%emt 0:00:02]} 41. Rb1 {[%emt 0:00:02]} c5 {[%emt 0:00:02]} 42. Kf1 {[%emt 0:00:03]} c4 {[%emt 0:00:00]} 43. Ke2 Nd5 {[%emt 0:00:09]} 44. Rxb5 {[%emt 0:00:04]} c3 {[%emt 0:00:02]} 45. Rxd5 {[%emt 0:00:03]} exd5 {[%emt 0:00:01]} 46. Kd3 {[%emt 0:00:01]} d4 {[%emt 0:00:02]} 47. Rh6 {[%emt 0:00:02]} Be6 {[%emt 0:00:02]} 48. Rxh5 {[%emt 0:00:02]} b5 {[%emt 0:00:02]} 49. Rh7+ {[%emt 0:00:01]} Bf7 {[%emt 0:00:01]} 50. Rh6 {[%emt 0:00:02]} b4 {[%emt 0:00:00]} 51. Rb6 {[%emt 0:00:02]} b3 {[%emt 0:00:01]} 52. e6 {[%emt 0:00:04]} Bxe6 {[%emt 0:00:02]} 53. h5 {[%emt 0:00:02]} Bf5+ {[%emt 0:00:01]} 54. Ke2 b2 55. Kd1 {[%emt 0:00:04]} b1=Q+ {[%emt 0:00:02]} 56. Rxb1 {[%emt 0:00:01]} Bxb1 {[%emt 0:00:01]} 57. Ke2 {[%emt 0:00:04]} d3+ {[%emt 0:00:02]} 58. Kd1 {[%emt 0:00:01]} Ba2 {[%emt 0:00:03]} 59. Kc1 {[%emt 0:00:02]} Bb3 {[%emt 0:00:01]} 60. f3 {[%emt 0:00:02]} d2+ {[%emt 0:00:01]} 61. Kb1 {[%emt 0:00:02]} d1=Q# 1-0

[Event "GER-chW Blitz 2019"]
[Site "Magdeburg"]
[Date "2019.05.25"]
[Round "14.2"]
[White "Kreismann, Franziska"]
[Black "Gheng, Simona"]
[Result "1/2-1/2"]
[ECO "D37"]
[WhiteElo "1589"]
[BlackElo "1991"]
[Annotator "NA"]
[PlyCount "64"]
[EventDate "2019.05.25"]
[EventType "tourn"]
[EventCountry "GER"]
[SourceTitle "playchess.com"]
[Source "ChessBase"]
[SourceQuality "1"]
[TimeControl "180+2"]

1. d4 {[%emt 0:00:00]} d5 {[%emt 0:00:00]} 2. c4 {[%emt 0:00:00]} e6 {[%emt 0:00:00]} 3. Nc3 {[%emt 0:00:01]} Nf6 {[%emt 0:00:00]} 4. Nf3 {[%emt 0:00:01]} b6 {[%emt 0:00:07]} 5. Bg5 {[%emt 0:00:01]} Be7 {[%emt 0:00:01]} 6. e3 {[%emt 0:00:01]} Bb7 {[%emt 0:00:01]} 7. Bd3 {[%emt 0:00:02]} O-O {[%emt 0:00:02]} 8. cxd5 {[%emt 0:00:02]} exd5 {[%emt 0:00:01]} 9. O-O {[%emt 0:00:02]} h6 {[%emt 0:00:01]} 10. Bxf6 {[%emt 0:00:02]} Bxf6 {[%emt 0:00:02]} 11. Re1 {[%emt 0:00:03]} Nd7 {[%emt 0:00:06]} 12. Bc2 {[%emt 0:00:05]} Rc8 {[%emt 0:00:06]} 13. Qd3 {[%emt 0:00:01]} g6 {[%emt 0:00:03]} 14. g3 {[%emt 0:00:31]} Bg7 {[%emt 0:00:02]} 15. h4 {[%emt 0:00:00]} Nf6 {[%emt 0:00:12]} 16. Nh2 {[%emt 0:00:06]} c5 {[%emt 0:00:13]} 17. dxc5 {[%emt 0:00:08]} bxc5 {[%emt 0:00:02]} 18. Rad1 {[%emt 0:00:16]} c4 {[%emt 0:00:10]} 19. Qe2 {[%emt 0:00:11]} Qb6 {[%emt 0:00:09]} 20. Bb1 {[%emt 0:00:23]} Rfd8 {[%emt 0:00:08]} 21. Nf3 {[%emt 0:00:06]} Ne4 {[%emt 0:00:09]} 22. Nxe4 {[%emt 0:00:26]} dxe4 {[%emt 0:00:01]} 23. Rxd8+ {[%emt 0:00:01]} Rxd8 {[%emt 0:00:16]} 24. Nd4 {[%emt 0:00:13]} Bxd4 {[%emt 0:00:08]} 25. exd4 {[%emt 0:00:01]} Qxd4 {[%emt 0:00:04]} 26. Bxe4 {[%emt 0:00:12]} Bxe4 {[%emt 0:00:13]} 27. Qxe4 {[%emt 0:00:01]} Qxb2 {[%emt 0:00:07]} 28. Qxc4 {[%emt 0:00:10]} Qd2 {[%emt 0:00:05]} 29. Re2 {[%emt 0:00:08]} Qd1+ {[%emt 0:00:03]} 30. Kg2 {[%emt 0:00:02]} Qd5+ {[%emt 0:00:01]} 31. Qxd5 {[%emt 0:00:05]} Rxd5 {[%emt 0:00:01]} 32. Re8+ {[%emt 0:00:02]} Kg7 {[%emt 0:00:00]} 1/2-1/2

[Event "GER-chW Blitz 2019"]
[Site "Magdeburg"]
[Date "2019.05.25"]
[Round "14.3"]
[White "Daemering, Katrin"]
[Black "Kopylov, Luba"]
[Result "0-1"]
[ECO "A05"]
[WhiteElo "2003"]
[BlackElo "2078"]
[Annotator "NA"]
[PlyCount "128"]
[EventDate "2019.05.25"]
[EventType "tourn"]
[EventCountry "GER"]
[SourceTitle "playchess.com"]
[Source "ChessBase"]
[SourceQuality "1"]
[TimeControl "180+2"]

1. Nf3 {[%emt 0:00:00]} Nf6 {[%emt 0:00:00]} 2. g3 {[%emt 0:00:00]} d5 {[%emt 0:00:01]} 3. Bg2 {[%emt 0:00:01]} g6 {[%emt 0:00:02]} 4. d3 {[%emt 0:00:01]} Bg7 {[%emt 0:00:03]} 5. O-O {[%emt 0:00:02]} c5 {[%emt 0:00:00]} 6. Na3 {[%emt 0:00:01]} O-O {[%emt 0:00:06]} 7. c4 {[%emt 0:00:02]} e6 {[%emt 0:00:13]} 8. Rb1 {[%emt 0:00:05]} Nc6 {[%emt 0:00:02]} 9. b3 {[%emt 0:00:13]} a6 {[%emt 0:00:05]} 10. Bd2 {[%emt 0:00:14]} b6 {[%emt 0:00:02]} 11. Nc2 {[%emt 0:00:08]} Ra7 {[%emt 0:00:01]} 12. a3 {[%emt 0:00:01]} b5 {[%emt 0:00:08]} 13. cxb5 {[%emt 0:00:06]} axb5 {[%emt 0:00:01]} 14. Bc3 {[%emt 0:00:05]} d4 {[%emt 0:00:08]} 15. Bd2 {[%emt 0:00:03]} Ne7 {[%emt 0:00:10]} 16. Bf4 {[%emt 0:00:06]} Ned5 {[%emt 0:00:06]} 17. Bd2 {[%emt 0:00:08]} Bb7 {[%emt 0:00:02]} 18. Ra1 {[%emt 0:00:07]} Qa8 {[%emt 0:00:05]} 19. b4 {[%emt 0:00:13]} cxb4 {[%emt 0:00:16]} 20. axb4 {[%emt 0:00:12]} Nc3 {[%emt 0:00:09]} 21. Bxc3 {[%emt 0:00:19]} dxc3 {[%emt 0:00:01]} 22. Rxa7 {[%emt 0:00:06]} Qxa7 {[%emt 0:00:01]} 23. Ne3 {[%emt 0:00:02]} Nd5 {[%emt 0:00:05]} 24. Nc2 {[%emt 0:00:13]} Ra8 {[%emt 0:00:13]} 25. e4 {[%emt 0:00:01]} Ne7 {[%emt 0:00:07]} 26. Ne3 {[%emt 0:00:04]} Nc6 {[%emt 0:00:05]} 27. Qb3 {[%emt 0:00:02]} Qa4 {[%emt 0:00:06]} 28. Qxa4 {[%emt 0:00:16]} Rxa4 {[%emt 0:00:01]} 29. Rc1 {[%emt 0:00:09]} Nxb4 {[%emt 0:00:03]} 30. Ne1 {[%emt 0:00:08]} Ra2 {[%emt 0:00:12]} 31. Nd1 {[%emt 0:00:04]} c2 {[%emt 0:00:04]} 32. Ne3 {[%emt 0:00:05]} Bb2 {[%emt 0:00:07]} 33. Rxc2 {[%emt 0:00:06]} Nxc2 {[%emt 0:00:02]} 34. N3xc2 {[%emt 0:00:03]} Bc3 {[%emt 0:00:03]} 35. Kf1 {[%emt 0:00:04]} b4 {[%emt 0:00:02]} 36. Ne3 {[%emt 0:00:16]} b3 {[%emt 0:00:06]} 37. Nd1 {[%emt 0:00:03]} Bd4 {[%emt 0:00:03]} 38. Nf3 {[%emt 0:00:06]} Bxf2 {[%emt 0:00:13]} 39. d4 {[%emt 0:00:12]} Bxd4 {[%emt 0:00:04]} 40. Nxd4 {[%emt 0:00:02]} Rd2 {[%emt 0:00:03]} 41. Nxb3 {[%emt 0:00:02]} Rxd1+ {[%emt 0:00:01]} 42. Ke2 {[%emt 0:00:00]} Rb1 {[%emt 0:00:03]} 43. Nd2 {[%emt 0:00:02]} Rb2 {[%emt 0:00:02]} 44. Ke3 {[%emt 0:00:00]} Ba6 {[%emt 0:00:02]} 45. Nf3 {[%emt 0:00:03]} Re2+ {[%emt 0:00:02]} 46. Kf4 {[%emt 0:00:01]} Rxg2 {[%emt 0:00:01]} 47. Ne5 {[%emt 0:00:01]} f6 {[%emt 0:00:02]} 48. Nd7 {[%emt 0:00:01]} Kf7 {[%emt 0:00:02]} 49. Nc5 {[%emt 0:00:01]} Bc4 {[%emt 0:00:02]} 50. Ke3 {[%emt 0:00:01]} Rxh2 {[%emt 0:00:02]} 51. Kd4 {[%emt 0:00:01]} Bb5 {[%emt 0:00:03]} 52. Nb3 {[%emt 0:00:02]} Rc2 {[%emt 0:00:02]} 53. Nc5 {[%emt 0:00:02]} e5+ {[%emt 0:00:01]} 54. Kd5 {[%emt 0:00:01]} Bc4+ {[%emt 0:00:02]} 55. Kd6 {[%emt 0:00:01]} Rd2+ {[%emt 0:00:05]} 56. Kc7 {[%emt 0:00:02]} Ke7 {[%emt 0:00:03]} 57. Na4 {[%emt 0:00:03]} Rc2 {[%emt 0:00:03]} 58. Kb6 {[%emt 0:00:02]} Kd6 {[%emt 0:00:02]} 59. Ka5 {[%emt 0:00:03]} Bb3 {[%emt 0:00:03]} 60. Nb6 {[%emt 0:00:03]} Kc6 {[%emt 0:00:03]} 61. Na8 {[%emt 0:00:04]} Kc5 {[%emt 0:00:02]} 62. Ka6 {[%emt 0:00:04]} Kc6 {[%emt 0:00:05]} 63. Ka5 {[%emt 0:00:01]} Rc4 {[%emt 0:00:02]} 64. Nb6 {[%emt 0:00:03]} Rxe4 {[%emt 0:00:02]} 0-1

[Event "GER-chW Blitz 2019"]
[Site "Magdeburg"]
[Date "2019.05.25"]
[Round "14.4"]
[White "Sieber, Fiona"]
[Black "Zimmer, Elke"]
[Result "1-0"]
[ECO "C78"]
[WhiteElo "2250"]
[BlackElo "1926"]
[Annotator "NA"]
[PlyCount "50"]
[EventDate "2019.05.25"]
[EventType "tourn"]
[EventCountry "GER"]
[SourceTitle "playchess.com"]
[Source "ChessBase"]
[SourceQuality "1"]
[TimeControl "180+2"]

1. e4 {[%emt 0:00:00]} e5 {[%emt 0:00:00]} 2. Nf3 {[%emt 0:00:00]} Nc6 {[%emt 0:00:00]} 3. Bb5 {[%emt 0:00:01]} Nf6 {[%emt 0:00:02]} 4. O-O {[%emt 0:00:04]} a6 {[%emt 0:00:01]} 5. Ba4 {[%emt 0:00:01]} Bc5 {[%emt 0:00:03]} 6. d3 {[%emt 0:00:03]} d6 {[%emt 0:00:03]} 7. c3 {[%emt 0:00:02]} O-O {[%emt 0:00:03]} 8. Nbd2 {[%emt 0:00:03]} Bg4 {[%emt 0:00:03]} 9. h3 {[%emt 0:00:02]} Be6 {[%emt 0:00:04]} 10. Re1 {[%emt 0:00:02]} b5 {[%emt 0:00:03]} 11. Bc2 {[%emt 0:00:03]} Ba7 {[%emt 0:00:04]} 12. Nf1 {[%emt 0:00:03]} Qc8 {[%emt 0:00:06]} 13. d4 {[%emt 0:00:11]} exd4 {[%emt 0:00:05]} 14. cxd4 {[%emt 0:00:01]} Re8 {[%emt 0:00:13]} 15. d5 {[%emt 0:00:18]} Bd7 {[%emt 0:00:55]} 16. dxc6 {[%emt 0:00:03]} Bxc6 {[%emt 0:00:01]} 17. Ng3 {[%emt 0:00:04]} Qb7 {[%emt 0:00:06]} 18. Qe2 {[%emt 0:00:21]} b4 {[%emt 0:00:03]} 19. Be3 {[%emt 0:00:08]} Bb5 {[%emt 0:00:02]} 20. Qd2 {[%emt 0:00:05]} Rad8 {[%emt 0:00:13]} 21. Bxa7 {[%emt 0:00:05]} Qxa7 {[%emt 0:00:01]} 22. Qxb4 {[%emt 0:00:04]} Nd7 {[%emt 0:00:17]} 23. Rad1 {[%emt 0:00:05]} Nc5 {[%emt 0:00:01]} 24. e5 {[%emt 0:00:06]} d5 {[%emt 0:00:05]} 25. Qh4 {[%emt 0:00:09]} Ne6 {[%emt 0:00:05]} 1-0

[Event "GER-chW Blitz 2019"]
[Site "Magdeburg"]
[Date "2019.05.25"]
[Round "14.5"]
[White "Osmanodja, Filiz"]
[Black "Mader, Lena"]
[Result "1-0"]
[ECO "B12"]
[WhiteElo "2260"]
[BlackElo "1839"]
[Annotator "NA"]
[PlyCount "87"]
[EventDate "2019.05.25"]
[EventType "tourn"]
[EventCountry "GER"]
[SourceTitle "playchess.com"]
[Source "ChessBase"]
[SourceQuality "1"]
[TimeControl "180+2"]

1. e4 {[%emt 0:00:00]} c6 {[%emt 0:00:00]} 2. d4 {[%emt 0:00:01]} d5 {[%emt 0:00:00]} 3. e5 {[%emt 0:00:02]} Bf5 {[%emt 0:00:00]} 4. Nd2 {[%emt 0:00:04]} e6 {[%emt 0:00:01]} 5. Nb3 {[%emt 0:00:00]} Ne7 {[%emt 0:00:08]} 6. Nf3 {[%emt 0:00:01]} a5 {[%emt 0:00:11]} 7. a4 Na6 {[%emt 0:00:16]} 8. Bd2 {[%emt 0:00:51]} Qc7 {[%emt 0:00:09]} 9. Bxa5 {[%emt 0:00:07]} b6 {[%emt 0:00:01]} 10. Bd2 {[%emt 0:00:07]} c5 {[%emt 0:00:25]} 11. Bb5+ {[%emt 0:00:18]} Nc6 {[%emt 0:00:08]} 12. dxc5 {[%emt 0:00:11]} bxc5 {[%emt 0:00:03]} 13. Na5 {[%emt 0:00:05]} Nab8 {[%emt 0:00:10]} 14. Nxc6 {[%emt 0:00:11]} Nxc6 {[%emt 0:00:01]} 15. O-O {[%emt 0:00:08]} Be7 {[%emt 0:00:00]} 16. b4 {[%emt 0:00:29]} O-O {[%emt 0:00:14]} 17. Bxc6 {[%emt 0:00:03]} Qxc6 {[%emt 0:00:03]} 18. b5 {[%emt 0:00:01]} Qb7 {[%emt 0:00:15]} 19. Qb1 {[%emt 0:00:16]} c4 {[%emt 0:00:22]} 20. a5 {[%emt 0:00:16]} Bc5 {[%emt 0:00:06]} 21. Be3 {[%emt 0:00:11]} Bxe3 {[%emt 0:00:22]} 22. fxe3 {[%emt 0:00:01]} Be4 {[%emt 0:00:07]} 23. Nd4 {[%emt 0:00:03]} Qe7 {[%emt 0:00:13]} 24. Qe1 {[%emt 0:00:12]} Qc5 {[%emt 0:00:09]} 25. c3 {[%emt 0:00:03]} Bd3 {[%emt 0:00:05]} 26. Rf4 {[%emt 0:00:01]} Be4 {[%emt 0:00:02]} 27. Qg3 {[%emt 0:00:03]} Qe7 {[%emt 0:00:03]} 28. Rg4 {[%emt 0:00:01]} Bg6 {[%emt 0:00:01]} 29. h4 {[%emt 0:00:01]} h5 {[%emt 0:00:03]} 30. Rg5 {[%emt 0:00:04]} Qc7 {[%emt 0:00:04]} 31. b6 {[%emt 0:00:02]} Qd7 {[%emt 0:00:02]} 32. a6 {[%emt 0:00:02]} Qd8 {[%emt 0:00:03]} 33. b7 {[%emt 0:00:02]} Rb8 {[%emt 0:00:02]} 34. a7 Rxb7 {[%emt 0:00:00]} 35. a8=Q {[%emt 0:00:05]} Qxa8 {[%emt 0:00:01]} 36. Rxa8 Rxa8 37. Nxe6 {[%emt 0:00:04]} Ra1+ {[%emt 0:00:03]} 38. Kh2 {[%emt 0:00:01]} Rbb1 {[%emt 0:00:04]} 39. Qf2 {[%emt 0:00:04]} Rh1+ {[%emt 0:00:02]} 40. Kg3 {[%emt 0:00:00]} Rhf1 {[%emt 0:00:02]} 41. Qb2 {[%emt 0:00:03]} Be4 {[%emt 0:00:02]} 42. Qb8+ {[%emt 0:00:03]} Kh7 {[%emt 0:00:01]} 43. Rxg7+ Kh6 44. Qh8+ {[%emt 0:00:04]} 1-0